{"text_format":"3","workbook":"xlsx","n_sheets":1,"sheets":["Sheet1"],"read":"whole","date_system":"1900"}

{"sheet":"Sheet1","index":0,"n_rows":35,"n_cols":4,"rows_kept":35,"merged":[[34,0,34,2]]}
["Location","Estimated Trips Per Year","Per Trip Cost","Extended Cost"]
["A.C. Senior Center",52,null,0]
["EMS - 100 Elza Dr",24,null,{"$f":"B3*C3","v":0}]
["EMS - 129 First Quality Dr",52,null,0]
["EMS - 314 Public Safety Ln",52,null,0]
["A.C. Motorpool",52,null,0]
["A.C. Baseball Field",52,null,0]
["A.C. Office of Technology",52,null,0]
["Clinton Middle School",520,null,0]
["Clinton High Cafeteria",260,null,0]
["Clinton High",104,null,0]
["Lake City Middle",156,null,0]
["Lake City Elementary",260,null,0]
["Headstart Preschool",52,null,0]
["Clinch River Learning Center",104,null,0]
["County School Office",516,null,0]
["School Maintenace",26,null,0]
["Norwood Middle",104,null,0]
["Norwood Elementary",156,null,0]
["Grand Oaks Elementary",104,null,0]
["Fairview Elementary",156,null,0]
["Dutch Valley Elementary",52,null,0]
["Claxton Elementary",416,null,0]
["Briceville Elementary",156,null,0]
["Andersonville Elementary",156,null,0]
["Anderson County High",260,null,0]
["Anderson County Career & Technical Center",260,null,0]
["Blockhouse Valley Center",26,null,0]
["DARC Building",156,null,0]
["Detention Facility",312,null,0]
["Robert Jolley Building",156,null,0]
["Highway Department",26,null,0]
["AC Health Department",52,null,0]
["AC Park",52,null,0]
["Total:",null,null,{"$f":"SUM(D2:D34)","v":0}]